bitfinex/quotes_ETHUSD_20250924
["timestamp","ask_amount","ask_price","bid_price","bid_amount"]
[1758733048532,13.31743095,4180.0,4179.9,1e-08]
[1758733049133,12.72380012,4180.0,4179.9,1e-08]
[1758733049440,12.84142272,4180.0,4179.9,1e-08]
[1758733051805,14.27942272,4180.0,4179.9,1e-08]
[1758733053754,14.65458646,4180.0,4179.9,0.23650001]
[1758733053953,14.65458646,4180.0,4179.9,0.68770001]
[1758733054155,14.65458646,4180.0,4179.9,1e-08]
[1758733055326,3.792,4179.9,4179.6,0.002]
[1758733055525,6.20653313,4179.8,4179.6,0.002]
[1758733055928,6.20653313,4179.8,4179.7,0.2385]
[1758733056160,6.44503313,4179.8,4179.7,0.2385]
[1758733057255,6.44503313,4179.8,4179.7,0.002]
[1758733058975,2.45903313,4179.8,4179.7,0.002]
[1758733059263,14.67003313,4179.8,4179.7,0.6897]
[1758733060782,14.67003313,4179.8,4179.7,0.2385]
[1758733060946,14.67003313,4179.8,4179.7,0.002]
[1758733063774,15.04519287,4179.8,4179.7,0.002]
[1758733064145,15.83719287,4179.8,4179.7,0.002]
[1758733064553,16.50299287,4179.8,4179.7,0.002]
[1758733066342,17.94099287,4179.8,4179.6,0.002]
[1758733066546,8.3722795,4179.7,4179.6,0.002]
[1758733066961,8.6011795,4179.7,4179.6,0.002]
[1758733067864,8.1642795,4179.7,4179.6,0.002]
[1758733068061,8.6011795,4179.7,4179.6,0.002]
[1758733068586,8.89427298,4179.7,4179.6,0.002]
[1758733069872,10.61734715,4179.7,4179.6,0.002]
[1758733070493,2.23,4179.5,4179.1,0.022]
[1758733070694,8.57550048,4179.4,4179.1,0.022]
[1758733070898,0.792,4179.2,4179.1,0.022]
[1758733071097,8.29384576,4179.2,4179.1,0.022]
[1758733071596,4.30784576,4179.2,4179.1,0.6892]
[1758733071899,10.28784576,4179.2,4179.1,0.6892]
[1758733072101,11.75188062,4179.2,4179.1,0.6892]
[1758733075000,2.50984576,4179.2,4179.1,0.6892]
[1758733075170,6.49584576,4179.2,4179.1,0.6892]
[1758733075371,0.51584576,4179.2,4179.1,0.6892]
[1758733075575,6.49584576,4179.2,4179.1,0.6892]
[1758733075909,0.51584576,4179.2,4179.1,0.6892]
[1758733076072,4.062,4179.2,4179.1,0.6892]
[1758733076472,4.57784576,4179.2,4179.1,0.6892]
[1758733077467,4.57784576,4179.2,4179.1,0.71312859]
[1758733077468,0.51584576,4179.2,4179.1,0.71312859]
[1758733077805,0.51584576,4179.2,4179.1,3.0820597]
[1758733077806,5.0422,4179.2,4179.1,3.0820597]
[1758733078308,5.55804576,4179.2,4179.1,3.0820597]
[1758733079309,5.0422,4179.2,4179.1,3.0820597]
[1758733079511,5.0422,4179.2,4179.1,0.6892]
[1758733079980,5.0422,4179.2,4179.1,3.0820597]
[1758733082033,0.28934184,4179.6,4179.5,2.39263069]
[1758733082330,4.39454184,4179.6,4179.5,11.85044856]
[1758733082484,4.27534184,4179.6,4179.5,12.53934856]
[1758733084406,4.27534184,4179.6,4179.5,3.08153069]
[1758733089240,4.27534184,4179.6,4179.5,3.08353069]
[1758733094648,4.27534184,4179.6,4179.5,11.25341999]
[1758733095355,4.27534184,4179.6,4179.5,8.8607893]
[1758733095523,4.27534184,4179.6,4179.5,10.56451999]
[1758733095938,4.27534184,4179.6,4179.5,10.79011999]
[1758733096466,4.27534184,4179.6,4179.5,11.23101999]
[1758733100155,4.27534184,4179.6,4179.5,10.56451999]
[1758733101264,4.27534184,4179.6,4179.5,11.23101999]
[1758733101463,4.27534184,4179.6,4179.5,25.73101999]
[1758733101815,0.28934184,4179.6,4179.5,25.73101999]
[1758733102011,0.93234184,4179.6,4179.5,25.73101999]
[1758733102214,0.93234184,4179.6,4179.5,25.06451999]
[1758733102423,0.93234184,4179.6,4179.5,25.29011999]
[1758733102718,0.93234184,4179.6,4179.5,25.73101999]
[1758733102937,0.93234184,4179.6,4179.5,25.06451999]
[1758733104128,0.93234184,4179.6,4179.5,25.29011999]
[1758733104452,0.93234184,4179.6,4179.5,25.73101999]
[1758733108867,0.93334184,4179.6,4179.5,25.06451999]
[1758733109367,0.93334184,4179.6,4179.5,25.29011999]
[1758733109668,0.93334184,4179.6,4179.5,25.73101999]
[1758733113052,0.29034184,4179.6,4179.5,25.06451999]
[1758733113383,0.29034184,4179.6,4179.5,25.29011999]
[1758733114086,0.29034184,4179.6,4179.5,25.73101999]
[1758733117655,4.27434184,4179.6,4179.5,25.73101999]
[1758733119081,0.29034184,4179.6,4179.5,25.73101999]
[1758733119294,4.27434184,4179.6,4179.5,25.73101999]
[1758733120459,0.29034184,4179.6,4179.5,25.73101999]
[1758733120665,0.29034184,4179.6,4179.5,25.85021999]
[1758733121102,0.29034184,4179.6,4179.5,26.14056183]
[1758733126018,0.29034184,4179.6,4179.5,29.68266183]
[1758733126177,0.29034184,4179.6,4179.5,30.11736183]
[1758733133417,0.29034184,4179.6,4179.5,25.47406183]
[1758733133735,0.29034184,4179.6,4179.5,29.39841999]
[1758733133891,0.29034184,4179.6,4179.5,29.83311999]
[1758733135528,0.29034184,4179.6,4179.5,25.18371999]
[1758733135729,0.29034184,4179.6,4179.5,29.16671999]
[1758733136301,0.29034184,4179.6,4179.5,29.39841999]
[1758733137595,0.29034184,4179.6,4179.5,29.16671999]
[1758733138240,0.29034184,4179.6,4179.5,29.39841999]
[1758733139124,0.29034184,4179.6,4179.5,29.16671999]
[1758733139595,0.001,4179.6,4179.5,29.16671999]
[1758733141940,0.001,4179.6,4179.5,29.39831999]
[1758733144053,0.001,4179.6,4179.5,29.16671999]
[1758733144518,0.001,4179.6,4179.5,29.74251999]
[1758733145036,0.001,4179.6,4179.5,29.83843301]
[1758733152769,0.001,4179.6,4179.5,32.83843301]
[1758733152917,0.001,4179.6,4179.5,33.63043301]
[1758733154670,0.001,4179.6,4179.5,35.0288175]
[1758733164584,0.001,4180.0,4179.5,35.0288175]
[1758733164585,1e-08,4180.0,4179.9,2.39240173]
[1758733164753,1e-08,4180.0,4179.9,18.96559953]
[1758733164954,1e-08,4180.0,4179.9,19.64787552]
[1758733165265,1e-08,4180.0,4179.9,34.14787552]
[1758733165593,1e-08,4180.0,4179.9,34.24377636]
[1758733165978,1e-08,4180.0,4179.9,33.53757636]
[1758733166311,1e-08,4180.0,4179.9,33.78417636]
[1758733168597,1e-08,4180.0,4179.9,34.24377636]
[1758733172269,1e-08,4180.0,4179.9,30.26277636]
[1758733172601,1e-08,4180.0,4179.9,24.08850257]
[1758733178501,1e-08,4180.0,4179.9,24.08750257]
[1758733180840,1e-08,4180.0,4179.9,24.33410257]
[1758733185133,1e-08,4180.0,4179.9,24.08750257]
[1758733186936,1e-08,4180.0,4179.9,24.33150257]
[1758733187143,1e-08,4180.0,4179.9,24.78480257]
[1758733192561,1e-08,4180.0,4179.9,24.33150257]
[1758733192965,1e-08,4180.0,4179.9,24.08750257]
[1758733194227,1e-08,4180.0,4179.9,24.33150257]
[1758733200244,1e-08,4180.0,4179.9,25.58770257]
[1758733200465,0.001,4180.1,4180.0,6.18434449]
[1758733200665,0.001,4180.1,4180.0,7.27254898]
[1758733200853,1e-08,4180.6,4180.5,6.18405836]
[1758733201058,1e-08,4180.6,4180.5,36.10413215]
[1758733201270,1e-08,4180.6,4180.5,36.93153215]
[1758733201769,1e-08,4180.6,4180.5,37.02740954]
[1758733202553,1e-08,4180.6,4180.5,19.98793575]
[1758733202755,1e-08,4180.6,4180.5,23.96693575]
[1758733205138,1e-08,4180.6,4180.5,24.20053575]
[1758733205473,1e-08,4180.6,4180.5,24.67513575]
[1758733206272,1e-08,4180.6,4180.5,24.20053575]
[1758733206481,1e-08,4180.6,4180.5,25.46713575]
[1758733206674,1e-08,4180.6,4180.5,36.20000954]
[1758733206908,1e-08,4180.6,4180.5,36.90820954]
[1758733208552,1e-08,4180.6,4180.5,30.93720954]
[1758733208780,1e-08,4180.6,4180.5,30.46260954]
[1758733208980,1e-08,4180.6,4180.5,36.20000954]
[1758733209460,1e-08,4180.6,4180.5,36.43360954]
[1758733210250,1e-08,4180.6,4180.5,19.98793575]
[1758733210451,0.68540001,4180.6,4180.5,23.96693575]
[1758733211254,0.22890001,4180.6,4180.5,23.96693575]
[1758733211567,0.68540001,4180.6,4180.5,23.96693575]
[1758733211888,0.68540001,4180.6,4180.5,23.87105836]
[1758733212255,0.22890001,4180.6,4180.5,23.87105836]
[1758733212789,0.22890001,4180.6,4180.5,23.99025836]
[1758733213288,0.68590001,4180.6,4180.5,0.1192]
[1758733213496,0.68590001,4180.6,4179.6,1.992]
[1758733213656,0.68590001,4180.6,4180.1,0.1192]
[1758733213856,0.68590001,4180.6,4180.2,14.5]
[1758733214056,0.6859,4180.5,4180.2,14.5]
[1758733214256,0.6859,4180.4,4180.2,14.5]
[1758733214478,0.457,4180.3,4180.2,14.5]
[1758733214671,0.6859,4180.3,4180.2,14.5]
[1758733214870,0.99369048,4180.3,4180.2,14.5]
[1758733215959,0.6859,4180.3,4180.2,14.5]
[1758733218514,1e-08,4180.6,4180.4,2.39211519]
[1758733218681,1e-08,4180.6,4180.5,2.39205836]
[1758733219494,1e-08,4180.6,4180.2,14.5]
[1758733219701,1e-08,4180.6,4180.1,3.979]
[1758733219909,0.6859,4180.5,4179.8,0.002]
[1758733220109,0.6859,4180.5,4180.4,14.5]
[1758733224214,1.35169,4180.5,4180.4,14.5]
[1758733225076,2.07118607,4180.5,4180.4,14.5]
[1758733225271,4.46324443,4180.5,4180.4,14.5]
[1758733225525,2.07118607,4180.5,4179.8,0.002]
[1758733225675,2.3922376,4180.2,4179.8,0.002]
[1758733226007,3.979,4180.1,4179.8,0.002]
[1758733226572,0.71949607,4180.5,4179.8,0.002]
[1758733226782,5.972,4180.4,4179.9,0.2277]
[1758733227026,0.6859,4180.3,4179.8,0.002]
[1758733227376,0.2289,4180.2,4179.8,0.002]
[1758733227886,0.457,4180.3,4179.8,0.002]
[1758733228223,0.2289,4180.3,4179.8,0.2297]
[1758733228896,0.2289,4180.3,4179.8,0.002]
[1758733229511,0.6859,4180.2,4179.8,0.002]
[1758733229831,0.2289,4180.2,4179.8,0.002]
[1758733230297,5.972,4180.4,4179.8,0.002]
[1758733230622,8.36415282,4180.4,4179.8,0.4675]
[1758733230809,8.36415282,4180.4,4179.9,0.2277]
[1758733230992,8.36415282,4180.4,4180.0,14.5]
[1758733232011,5.972,4180.4,4180.0,14.5]
[1758733232914,1e-08,4180.6,4180.1,0.02392287]
[1758733233252,3.979,4180.3,4180.2,0.2277]
[1758733233592,1e-08,4180.6,4180.3,2.39217281]
[1758733233796,1e-08,4180.6,4180.5,2.39205836]
[1758733233996,1e-08,4180.6,4180.2,0.31094586]
[1758733234231,1e-08,4180.6,4180.3,2.39217281]
[1758733234429,1e-08,4180.6,4180.5,14.5]
[1758733235440,0.68590001,4180.6,4180.5,14.5]
[1758733235803,0.22890001,4180.6,4180.5,14.5]
[1758733236248,1e-08,4180.6,4180.5,14.5]
[1758733237172,0.22890001,4180.6,4180.5,14.5]
[1758733237471,0.68590001,4180.6,4180.5,14.5]
[1758733239182,0.22890001,4180.6,4180.5,14.5]
[1758733239384,1e-08,4180.6,4180.5,14.5]
[1758733239581,0.22890001,4180.6,4180.5,14.5]
[1758733239780,1e-08,4180.6,4180.5,14.5]
[1758733247460,1e-08,4180.6,4180.2,0.2277]
[1758733247767,0.1192,4180.5,4180.0,0.7037]
[1758733247972,0.1192,4180.5,4180.3,14.5]
[1758733250386,0.1192,4180.5,4180.3,14.732]
[1758733250584,0.1192,4180.5,4180.3,14.5]
[1758733250905,0.6855,4180.4,4180.3,14.5]
[1758733251075,3.07761558,4180.4,4180.3,14.5]
[1758733252275,0.6855,4180.4,4180.3,14.5]
[1758733252511,0.38392,4180.5,4180.3,14.5]
[1758733252719,5.972,4180.4,4180.3,14.5]
[1758733252865,6.48739799,4180.4,4180.3,14.5]
[1758733255001,6.48739799,4180.4,4180.0,0.232]
[1758733255203,0.51539799,4180.3,4180.0,0.4717]
[1758733255504,0.51539799,4180.3,4180.1,14.732]
[1758733256079,0.51539799,4180.3,4180.1,14.5]
[1758733257609,0.51539799,4180.3,4180.2,0.232]
[1758733258312,0.51539799,4180.3,4180.2,15.2037]
[1758733258810,0.51539799,4180.3,4180.2,14.5]
[1758733260206,1.16413779,4180.3,4180.2,14.5]
[1758733260632,1.84973779,4180.3,4179.8,0.002]
[1758733260904,1.46777378,4180.2,4179.8,0.002]
[1758733261103,3.979,4180.1,4179.8,0.002]
[1758733261304,4.2079,4180.1,4179.8,0.002]
[1758733261505,4.49439799,4180.1,4179.8,0.002]
[1758733262517,3.979,4180.1,4179.9,3.05048583]
[1758733262749,3.979,4180.1,4179.8,0.002]
[1758733262750,0.51539799,4180.3,4180.0,0.6581]
[1758733263047,0.51539799,4180.3,4179.8,0.002]
[1758733263048,1.993,4180.1,4179.8,2.394449]
[1758733263220,1e-08,4180.6,4179.8,8.17180069]
[1758733263550,0.461,4180.5,4180.4,2.39211558]
[1758733263708,0.461,4180.5,4180.4,14.5]
[1758733265909,1e-08,4180.6,4180.4,15.1581]
[1758733266120,6.0912,4180.5,4180.4,16.89211558]
[1758733266522,6.0912,4180.5,4180.4,14.5]
[1758733266732,6.0912,4180.5,4180.4,15.1581]
[1758733267876,6.0912,4180.5,4180.4,14.7272]
[1758733268464,6.0912,4180.5,4180.4,14.5]
[1758733268739,4.0982,4180.5,4180.4,14.5]
[1758733275877,4.61471822,4180.5,4180.4,14.5]
[1758733276788,7.00677658,4180.5,4180.4,14.5]
[1758733277574,4.61471822,4180.5,4180.4,14.5]
[1758733277773,4.0982,4180.5,4180.4,14.5]
[1758733278563,4.82804182,4180.5,4180.4,14.5]
[1758733278763,5.05694182,4180.5,4180.4,14.5]
[1758733278958,5.57346004,4180.5,4180.4,14.5]
[1758733279558,5.34456004,4180.5,4180.4,14.5]
[1758733279762,0.792,4180.4,4180.1,0.002]
[1758733280074,8.91606004,4180.5,4180.1,0.002]
[1758733280075,6.18423003,4180.2,4180.1,0.002]
[1758733280379,6.70074825,4180.2,4180.1,0.002]
[1758733280774,7.39144825,4180.2,4180.1,0.002]
[1758733281086,6.18440173,4179.9,4179.8,0.002]
[1758733281262,12.67891995,4179.9,4179.8,0.002]
[1758733281462,14.9458146,4179.9,4179.8,0.002]
[1758733281651,14.9458146,4179.9,4179.8,0.00199999]
[1758733282675,8.9678146,4179.9,4179.8,0.00199999]
[1758733283051,21.55205895,4179.9,4179.8,0.00199999]
[1758733283252,13.33005895,4179.9,4179.8,0.00199999]
[1758733283468,9.34305895,4179.9,4179.8,0.00199999]
[1758733284076,21.1778146,4179.9,4179.8,0.00199999]
[1758733286586,21.1768146,4179.9,4179.8,0.00199999]
[1758733287082,21.55203976,4179.9,4179.8,0.00199999]
[1758733289704,9.34303976,4179.9,4179.8,0.00199999]
[1758733289882,21.55403976,4179.9,4179.8,0.00199999]
[1758733291889,6.18457345,4179.6,4179.5,0.002]
[1758733292184,13.07937782,4179.6,4179.5,0.002]
[1758733292484,13.77007782,4179.6,4179.5,0.002]
[1758733292693,13.866047,4179.6,4179.5,0.002]
[1758733294077,13.637147,4179.6,4179.5,0.002]
[1758733294278,6.1852033,4178.5,4176.7,2.39419926]
[1758733294501,12.69172152,4178.5,4178.0,0.2333]
[1758733294884,12.92502152,4178.5,4178.0,0.2333]
[1758733295606,12.92502152,4178.5,4177.9,0.4625]
[1758733295773,12.92502152,4178.5,4178.1,0.2533]
[1758733295969,10.93102152,4178.5,4178.2,0.4625]
[1758733296196,6.4185033,4178.5,4178.4,0.2353]
[1758733296513,13.28966661,4178.5,4178.4,0.6978]
[1758733296709,7.6205033,4178.5,4178.4,0.6978]
[1758733296916,11.3832033,4178.5,4178.4,0.6978]
[1758733298115,9.3902033,4178.5,4178.4,0.6978]
[1758733298277,11.3842033,4178.5,4178.4,15.1978]
[1758733298473,8.3842033,4178.5,4178.4,15.1978]
[1758733298680,5.991,4178.5,4178.4,15.1978]
[1758733299374,2.39316271,4178.6,4178.4,15.1978]
[1758733299575,3.0,4178.7,4178.5,0.6958]
[1758733299576,1.994,4178.7,4178.5,0.6958]
[1758733299781,1.994,4178.7,4178.6,0.6958]
[1758733299981,0.61121686,4179.2,4178.6,3.11287748]
[1758733300202,0.61121686,4179.2,4178.6,2.41706188]
[1758733300510,5.991,4179.1,4178.7,0.6958]
[1758733300711,5.991,4179.1,4178.8,0.6958]
[1758733300918,5.991,4179.1,4178.9,0.6958]
[1758733301231,5.991,4179.1,4179.0,0.6958]
[1758733302185,0.61121686,4179.2,4179.0,0.6958]
[1758733302385,2.60521686,4179.2,4179.1,0.701]
[1758733302584,6.60221686,4179.2,4179.1,0.701]
[1758733302802,6.60221686,4179.2,4179.1,15.201]
[1758733305117,0.61121686,4179.2,4179.1,15.201]
[1758733305317,6.60121686,4179.2,4179.1,15.201]
[1758733305522,0.61121686,4179.2,4179.1,15.201]
[1758733305911,4.38421686,4179.2,4179.1,17.5938597]
[1758733307996,4.38421686,4179.2,4179.1,15.201]
[1758733308396,4.38421686,4179.2,4179.1,14.5]
[1758733308603,6.77701931,4179.2,4179.1,14.5]
[1758733309463,4.38421686,4179.2,4179.1,14.5]
[1758733309606,4.38421686,4179.2,4179.1,15.201]
[1758733310517,4.38421686,4179.2,4179.1,14.7262]
[1758733312838,4.38421686,4179.2,4179.1,14.5]
[1758733314252,6.77701931,4179.2,4179.1,14.5]
[1758733314459,4.38421686,4179.2,4179.1,14.5]
[1758733314834,4.38421686,4179.2,4179.1,14.7262]
[1758733315922,4.38421686,4179.2,4179.1,0.2262]
[1758733316340,4.38421686,4179.2,4179.1,14.7262]
[1758733316663,4.38421686,4179.2,4179.1,15.201]
[1758733316862,4.38521686,4179.2,4179.1,15.201]
[1758733317362,4.38521686,4179.2,4179.1,14.7262]
[1758733320146,0.61221686,4179.2,4179.1,15.1553]
[1758733320477,0.001,4179.2,4179.1,17.5481597]
[1758733320877,0.842,4179.2,4179.1,17.5481597]
[1758733321238,3.994,4179.2,4179.1,17.5481597]
[1758733322140,0.001,4179.2,4179.1,17.5481597]
[1758733322345,3.173,4179.2,4179.1,17.5481597]
[1758733323090,3.173,4179.2,4179.1,27.00201816]
[1758733323091,0.001,4179.2,4179.1,27.00201816]
[1758733323241,0.001,4179.2,4179.1,27.12121816]
[1758733324291,0.001,4179.2,4179.1,17.6673597]
[1758733325556,0.001,4179.2,4179.1,16.8928597]
[1758733325756,0.001,4179.2,4179.1,14.5]
[1758733325954,2.4197,4179.2,4179.1,14.5]
[1758733326569,2.1908,4179.2,4179.1,14.5]
[1758733328308,1.994,4179.2,4179.1,14.5]
[1758733328605,2.3928597,4179.1,4178.6,0.002]
[1758733328764,5.985,4179.0,4178.6,0.002]
[1758733328964,0.51601935,4178.9,4178.7,0.2455]
[1758733329195,0.001,4179.2,4178.8,15.1746]
[1758733329497,5.987,4179.1,4178.8,17.56762589]
[1758733329664,0.51654888,4179.0,4178.8,14.9291]
[1758733330003,1.993,4179.0,4178.9,0.2455]
[1758733330201,5.986,4179.0,4178.8,14.5]
[1758733330719,3.61335637,4178.9,4178.8,14.5]
[1758733331003,1.22038215,4178.9,4178.8,14.5]
[1758733331212,0.74548215,4178.9,4178.8,14.5]
[1758733331507,3.61335637,4178.9,4178.8,14.5]
[1758733331887,2.39308875,4178.7,4178.6,0.002]
[1758733332110,3.67842036,4178.7,4178.6,0.002]
[1758733332475,4.37972036,4178.7,4178.6,0.002]
[1758733333098,4.89619393,4178.7,4178.6,0.002]
[1758733333409,8.68819393,4178.7,4178.6,0.002]
[1758733333988,7.89619393,4178.7,4178.6,0.002]
[1758733334189,11.89219393,4178.7,4178.6,0.002]
[1758733334706,13.88619393,4178.7,4178.6,0.002]
[1758733335211,11.89219393,4178.7,4178.6,0.002]
[1758733335386,13.88619393,4178.7,4178.6,0.002]
[1758733336675,11.89219393,4178.7,4178.6,0.002]
[1758733336881,13.88619393,4178.7,4178.6,0.002]
[1758733337494,14.26148529,4178.7,4178.6,0.002]
[1758733338010,14.26048529,4178.7,4178.6,0.002]
[1758733338602,15.05248529,4178.7,4178.6,0.002]
[1758733339679,13.05848529,4178.7,4178.6,0.002]
[1758733339921,15.05248529,4178.7,4178.6,0.002]
[1758733340290,15.05248529,4178.7,4178.1,0.022]
[1758733340291,0.792,4178.5,4178.1,1e-08]
[1758733340491,6.18537513,4178.2,4178.1,1e-08]
[1758733340801,10.6968487,4178.2,4178.1,1e-08]
[1758733340989,11.3981487,4178.2,4178.1,1e-08]
[1758733341189,12.8361487,4178.2,4178.1,1e-08]
[1758733341891,12.8361487,4178.2,4177.7,0.002]
[1758733341892,2.39360428,4177.8,4177.7,0.002]
[1758733342098,14.09231759,4177.8,4177.7,0.002]
[1758733342335,15.31009116,4177.8,4177.7,0.002]
[1758733342820,16.03024009,4177.8,4177.7,0.002]
[1758733343009,10.04024009,4177.8,4177.7,0.002]
[1758733343204,7.90094009,4177.8,4177.7,0.002]
[1758733343380,12.37979116,4177.8,4177.7,0.002]
[1758733343584,12.75518311,4177.8,4177.7,0.002]
[1758733344120,12.75518311,4177.8,4177.7,0.2352]
[1758733344338,12.23870954,4177.8,4177.7,0.6856]
[1758733344485,12.23870954,4177.8,4177.7,0.2352]
[1758733344690,12.75264015,4177.8,4177.7,0.002]
[1758733346490,12.23870954,4177.8,4177.7,0.002]
[1758733346923,6.24770954,4177.8,4177.7,0.002]
[1758733347141,10.24470954,4177.8,4177.7,0.002]
[1758733347289,12.23870954,4177.8,4177.7,0.002]
[1758733347493,6.24770954,4177.8,4177.7,0.002]
[1758733347794,12.23770954,4177.8,4177.7,0.6856]
[1758733347996,11.86231759,4177.8,4177.7,0.6856]
[1758733348194,11.38360428,4177.8,4177.7,0.6856]
[1758733348396,0.37536316,4178.2,4177.7,0.6856]
[1758733348603,0.001,4179.7,4177.8,15.1836]
[1758733348604,3.11317396,4178.5,4177.8,15.1836]
[1758733348894,2.39295385,4179.0,4177.9,0.6836]
[1758733348895,2.39338019,4178.2,4177.9,0.6836]
[1758733349094,3.0,4178.3,4178.0,0.6836]
[1758733349095,6.39043242,4178.1,4178.0,0.6836]
[1758733349307,2.39349335,4178.0,4177.8,14.7332]
[1758733349513,3.997,4177.9,4177.8,14.5]
[1758733350335,3.997,4177.9,4177.8,15.1836]
[1758733351345,5.991,4177.9,4177.8,15.1836]
[1758733351531,5.991,4177.9,4177.8,14.5]
[1758733351730,5.991,4177.9,4177.8,15.1836]
[1758733352130,5.991,4177.9,4177.8,14.7332]
[1758733352131,8.38454699,4177.9,4177.8,14.7332]
[1758733352317,5.991,4177.9,4177.8,14.7352]
[1758733352642,8.38454699,4177.9,4177.8,14.502]
[1758733353052,5.991,4177.9,4177.8,14.502]
[1758733353682,8.38454699,4177.9,4177.8,14.502]
[1758733353831,5.991,4177.9,4177.8,14.7352]
[1758733354777,5.991,4177.9,4177.8,15.1856]
[1758733354778,5.993,4177.9,4177.8,15.1856]
[1758733355335,5.39409492,4178.7,4177.8,15.1856]
[1758733355572,2.39352792,4178.0,4177.9,0.2332]
[1758733355745,2.51274699,4177.9,4177.8,14.502]
[1758733356162,0.1192,4177.9,4177.8,14.7352]
[1758733356334,0.1192,4177.9,4177.8,15.1856]
[1758733356747,2.51274699,4177.9,4177.8,15.1856]
[1758733357140,2.51274699,4177.9,4177.8,14.502]
[1758733357371,7.61982507,4177.9,4177.8,0.002]
[1758733359270,6.91852507,4177.9,4177.8,0.002]
[1758733362510,8.40477808,4177.9,4177.8,0.2282]
[1758733362805,11.90080634,4177.9,4177.8,0.6829]
[1758733363007,11.90080634,4177.9,4177.8,0.2282]
[1758733363411,5.90880634,4177.9,4177.8,0.002]
[1758733363616,5.90880634,4177.9,4177.8,0.6829]
[1758733363617,11.90080634,4177.9,4177.8,0.6829]
[1758733364891,9.90680634,4177.9,4177.8,0.6829]
[1758733365091,9.50625935,4177.9,4177.8,0.6829]
[1758733365309,11.89980634,4177.9,4177.8,0.6829]
[1758733365705,0.51525935,4177.9,4177.8,0.6829]
[1758733365906,4.968,4177.9,4177.8,0.6829]
[1758733366118,5.48325935,4177.9,4177.8,0.6829]
[1758733366508,2.50925935,4177.9,4177.8,3.07650428]
[1758733366712,5.992,4177.9,4177.8,3.07650428]
[1758733367134,5.992,4177.9,4177.8,17.57650428]
[1758733367632,2.39316203,4178.6,4177.9,2.39354699]
[1758733367812,0.1192,4178.2,4178.0,0.6809]
[1758733368013,3.998,4178.1,4177.9,2.39354699]
[1758733368328,0.1192,4178.2,4177.9,2.39354699]
[1758733368658,5.991,4178.1,4178.0,3.07438628]
[1758733368801,0.1192,4178.2,4178.1,2.39343242]
[1758733369000,6.0672,4178.2,4178.1,3.09826674]
[1758733369922,6.0672,4178.2,4178.1,3.07433242]
[1758733370227,6.0672,4178.2,4178.1,17.57433242]
[1758733371334,6.0672,4178.2,4178.1,15.1809]
[1758733372458,6.0672,4178.2,4178.1,17.57433242]
[1758733372862,6.0672,4178.2,4178.1,15.1809]
[1758733373252,6.0672,4178.2,4178.1,14.7262]
[1758733373442,6.0672,4178.2,4178.1,15.1809]
[1758733374464,6.0672,4178.2,4178.1,14.5]
[1758733374646,6.0672,4178.2,4178.1,17.57433242]
[1758733375228,0.1192,4178.2,4178.1,15.1809]
[1758733375464,6.1092,4178.2,4178.1,15.1809]
[1758733377540,6.1092,4178.2,4178.1,14.5]
[1758733378437,6.1092,4178.2,4177.8,0.002]
[1758733378438,3.0,4178.1,4177.8,0.002]
[1758733378636,3.995,4178.0,4177.8,0.002]
[1758733378868,2.39354699,4177.9,4177.8,0.002]
[1758733379028,3.36712619,4177.9,4177.8,0.002]
[1758733379231,3.59602619,4177.9,4177.8,0.002]
[1758733379451,5.16777124,4177.9,4177.8,0.002]
[1758733381284,4.93887124,4177.9,4177.8,0.002]
[1758733381485,5.16777124,4177.9,4177.8,0.002]
[1758733383588,4.90362619,4177.9,4177.8,0.6969]
[1758733383753,0.5160792,4177.9,4177.8,0.6969]
[1758733383954,0.37535657,4178.3,4177.8,0.6969]
[1758733383955,5.39337513,4178.2,4177.8,0.6969]
[1758733384153,5.39337513,4178.2,4177.9,15.1949]
[1758733384154,6.5070792,4178.1,4177.9,15.1949]
[1758733384382,2.9095689,4178.0,4177.9,14.5]
[1758733384988,4.37649969,4178.0,4177.9,14.5]
[1758733385189,8.3844897,4178.0,4177.9,14.5]
[1758733385390,8.9005689,4178.0,4177.9,14.5]
[1758733385592,2.39354699,4177.9,4177.8,0.002]
[1758733385795,6.59612619,4177.9,4177.8,0.002]
[1758733385994,8.33352602,4177.9,4177.8,0.002]
[1758733386379,7.87592602,4177.9,4177.8,0.002]
[1758733386694,13.86892602,4177.9,4177.8,0.002]
[1758733387070,7.87592602,4177.9,4177.8,0.002]
[1758733387268,13.86892602,4177.9,4177.8,0.002]
[1758733389089,14.32652602,4177.9,4177.8,0.002]
[1758733390186,15.11852602,4177.9,4177.8,0.002]
[1758733391771,9.87702602,4177.9,4177.8,0.002]
[1758733391971,7.64702602,4177.9,4177.8,0.002]
[1758733392172,13.63902602,4177.9,4177.8,0.002]
[1758733392500,11.64602602,4177.9,4177.8,0.002]
[1758733392805,13.64002602,4177.9,4177.8,0.002]
[1758733395878,13.86892602,4177.9,4177.8,0.002]
[1758733396191,15.10412602,4177.9,4177.8,0.002]
[1758733397276,7.74280428,4177.8,4177.7,1e-08]
[1758733397474,10.04628118,4177.8,4177.7,1e-08]
[1758733397704,10.71838118,4177.8,4177.7,1e-08]
[1758733403820,10.04628118,4177.8,4177.7,1e-08]
[1758733404016,22.27228118,4177.8,4177.7,1e-08]
[1758733405037,10.04628118,4177.8,4177.7,1e-08]
[1758733405201,16.71808118,4177.8,4177.7,1e-08]
[1758733405523,13.69008118,4177.8,4177.7,0.68070001]
[1758733406190,13.69008118,4177.8,4177.7,1e-08]
[1758733406388,15.15418118,4177.8,4177.7,1e-08]
[1758733406585,8.48908118,4177.8,4177.7,1e-08]
[1758733406791,20.71708118,4177.8,4177.7,1e-08]
[1758733407089,14.48208118,4177.8,4177.7,1e-08]
[1758733409884,15.15418118,4177.8,4177.7,1e-08]
[1758733410110,16.59218118,4177.8,4177.7,1e-08]